bitfinex/quotes_BTCUSD_20251213
["timestamp","ask_amount","ask_price","bid_price","bid_amount"]
[1765642537031,0.00198,90236.0,90235.0,0.01948]
[1765642537032,0.00396,90236.0,90235.0,0.01948]
[1765642537303,0.00198,90236.0,90235.0,0.002]
[1765642537445,0.00396,90236.0,90235.0,0.002]
[1765642537674,0.00396,90236.0,90235.0,0.001]
[1765642537869,0.01108229,90234.0,90231.0,0.03982194]
[1765642538269,0.01108229,90234.0,90230.0,0.05090472]
[1765642538491,0.01108229,90234.0,90232.0,0.01108229]
[1765642539257,0.22560839,90233.0,90232.0,0.01108229]
[1765642539476,0.22166068,90228.0,90227.0,0.01748]
[1765642539933,0.2216705,90224.0,90221.0,0.02985507]
[1765642540101,0.2216705,90224.0,90223.0,0.03202297]
[1765642540286,0.2236505,90224.0,90223.0,0.03202297]
[1765642540486,0.2236505,90224.0,90223.0,0.0021679]
[1765642541600,0.2246505,90224.0,90223.0,0.0021679]
[1765642542602,0.2256505,90224.0,90223.0,0.0021679]
[1765642544657,0.2276305,90224.0,90223.0,0.0021679]
[1765642544853,0.22924337,90224.0,90223.0,0.0021679]
[1765642550641,0.22726337,90224.0,90223.0,0.0021679]
[1765642551004,0.22528337,90224.0,90223.0,0.0021679]
[1765642553371,0.00361287,90224.0,90223.0,0.0021679]
[1765642554758,0.00559287,90224.0,90223.0,0.0021679]
[1765642558813,0.00757287,90224.0,90223.0,0.0021679]
[1765642559214,0.11827287,90224.0,90223.0,0.0021679]
[1765642560617,0.11727287,90224.0,90223.0,0.0021679]
[1765642561656,0.11727287,90224.0,90220.0,0.0096279]
[1765642561657,0.22365787,90221.0,90220.0,0.0096279]
[1765642561815,0.33435787,90221.0,90220.0,0.0096279]
[1765642562033,0.33633787,90221.0,90220.0,0.0096279]
[1765642562731,0.62703787,90221.0,90220.0,0.0096279]
[1765642562915,0.62803787,90221.0,90220.0,0.0096279]
[1765642563325,0.62703787,90221.0,90220.0,0.0096279]
[1765642563804,0.63003787,90221.0,90220.0,0.0096279]
[1765642565273,0.62903787,90221.0,90220.0,0.0096279]
[1765642565589,0.63103787,90221.0,90220.0,0.0096279]
[1765642571800,0.63103787,90221.0,90220.0,0.0096708]
[1765642574033,0.51835787,90221.0,90220.0,0.0096708]
[1765642575693,0.52033787,90221.0,90220.0,0.0096708]
[1765642576056,0.51835787,90221.0,90220.0,0.0096708]
[1765642577509,0.2947,90221.0,90220.0,0.0096708]
[1765642577706,0.2947,90221.0,90220.0,0.26913113]
[1765642577707,0.004,90221.0,90220.0,0.26913113]
[1765642579038,0.002,90221.0,90220.0,0.37983113]
[1765642579225,0.003,90221.0,90220.0,0.37983113]
[1765642579584,0.002,90221.0,90220.0,0.37983113]
[1765642579789,0.04987227,90229.0,90226.0,0.23274677]
[1765642579992,0.04987227,90229.0,90228.0,0.24920068]
[1765642580398,0.04987227,90229.0,90228.0,0.05014]
[1765642581436,0.04987227,90229.0,90228.0,0.27180068]
[1765642582214,0.05087227,90229.0,90228.0,0.27180068]
[1765642582509,0.04987227,90229.0,90228.0,0.27180068]
[1765642582936,0.05087227,90229.0,90228.0,0.27180068]
[1765642583376,0.05187227,90229.0,90228.0,0.27180068]
[1765642584530,0.05187227,90229.0,90228.0,0.05014]
[1765642584946,0.05187227,90229.0,90226.0,0.23274677]
[1765642585781,0.05087227,90229.0,90226.0,0.23274677]
[1765642586206,0.05187227,90229.0,90226.0,0.23274677]
[1765642586791,0.05087227,90229.0,90226.0,0.23274677]
[1765642586966,0.05087227,90229.0,90228.0,0.22166068]
[1765642587274,0.05187227,90229.0,90228.0,0.22166068]
[1765642588172,0.05087227,90229.0,90228.0,0.22166068]
[1765642588988,0.05187227,90229.0,90228.0,0.22166068]
[1765642589173,0.05187227,90229.0,90226.0,0.25613677]
[1765642590025,0.05087227,90229.0,90226.0,0.25613677]
[1765642590421,0.04987227,90229.0,90226.0,0.25613677]
[1765642590625,0.04987227,90229.0,90226.0,0.23274677]
[1765642590802,0.05087227,90229.0,90226.0,0.23274677]
[1765642591407,0.05087227,90229.0,90227.0,0.22166097]
[1765642591810,0.05187227,90229.0,90227.0,0.22166097]
[1765642593119,0.05087227,90229.0,90227.0,0.22166097]
[1765642593319,0.05187227,90229.0,90227.0,0.22166097]
[1765642593559,0.05087227,90229.0,90227.0,0.22166097]
[1765642593905,0.05187227,90229.0,90227.0,0.22166097]
[1765642596553,0.05187227,90229.0,90226.0,0.01108327]
[1765642596757,0.05187227,90229.0,90227.0,0.22166313]
[1765642597240,0.05187227,90229.0,90226.0,0.23274687]
[1765642597442,0.05087227,90229.0,90226.0,0.25613687]
[1765642597833,0.05187227,90229.0,90226.0,0.23274687]
[1765642598242,0.05087227,90229.0,90226.0,0.23274687]
[1765642598649,0.28461401,90229.0,90225.0,0.0234434]
[1765642599568,0.06195518,90229.0,90226.0,0.01108327]
[1765642599972,0.06295518,90229.0,90226.0,0.01108327]
[1765642600569,0.06195518,90229.0,90226.0,0.01108327]
[1765642600851,0.06295518,90229.0,90226.0,0.01108327]
[1765642601073,0.06195518,90229.0,90226.0,0.01108327]
[1765642601275,0.06295518,90229.0,90226.0,0.01108327]
[1765642601415,0.06395518,90229.0,90226.0,0.01108327]
[1765642602383,0.06395518,90229.0,90221.0,0.24506727]
[1765642602384,0.01108364,90223.0,90220.0,0.04296043]
[1765642602531,0.22167542,90222.0,90220.0,0.0096708]
[1765642602731,0.03729047,90222.0,90220.0,0.0096708]
[1765642603366,0.03729047,90222.0,90220.0,0.25473896]
[1765642603990,0.01108352,90224.0,90221.0,0.01108389]
[1765642604282,0.01108364,90223.0,90220.0,0.0096708]
[1765642604684,0.22167757,90222.0,90220.0,0.0096708]
[1765642605383,0.01208352,90224.0,90220.0,0.24243316]
[1765642605791,0.01208352,90224.0,90221.0,0.01108389]
[1765642606211,0.22167542,90222.0,90220.0,0.04949274]
[1765642606407,0.01108364,90223.0,90220.0,0.04949274]
[1765642606814,0.01108364,90223.0,90220.0,0.06057675]
[1765642607018,0.04791718,90223.0,90220.0,0.06057675]
[1765642607219,0.03683354,90223.0,90222.0,0.03982194]
[1765642612239,0.03683354,90223.0,90220.0,0.24243273]
[1765642612687,0.03683354,90223.0,90221.0,0.2216757]
[1765642612887,0.03683354,90223.0,90221.0,0.2574357]
[1765642613305,0.03683354,90223.0,90222.0,0.02339]
[1765642613973,0.03683354,90223.0,90221.0,0.2340457]
[1765642614178,0.03683354,90223.0,90221.0,0.01237]
[1765642614592,0.03683354,90223.0,90222.0,0.0399116]
[1765642614808,0.03683354,90223.0,90221.0,0.23404786]
[1765642615188,0.03683354,90223.0,90222.0,0.0399116]
[1765642616568,0.03683354,90223.0,90221.0,0.01237]
[1765642618296,0.03683354,90223.0,90222.0,0.03991066]
[1765642618666,0.03683354,90223.0,90221.0,0.01237]
[1765642619433,0.03683354,90223.0,90222.0,0.03990887]
[1765642620078,0.2585065,90223.0,90222.0,0.03990887]
[1765642621242,0.22167787,90221.0,90220.0,0.0096708]
[1765642621387,0.22527074,90221.0,90220.0,0.0096708]
[1765642621586,0.22725074,90221.0,90220.0,0.0096708]
[1765642624013,0.22925074,90221.0,90220.0,0.0096708]
[1765642625202,0.23025074,90221.0,90220.0,0.0096708]
[1765642626472,0.22629074,90221.0,90220.0,0.0096708]
[1765642626652,0.00461287,90221.0,90220.0,0.0327308]
[1765642627373,0.00261287,90221.0,90220.0,0.0327308]
[1765642627671,0.00161287,90221.0,90220.0,0.0327308]
[1765642627874,0.00161287,90221.0,90220.0,0.25441113]
[1765642628660,0.00161287,90221.0,90220.0,0.0096708]
[1765642635395,0.04791718,90223.0,90220.0,0.0096708]
[1765642635396,0.03683354,90223.0,90221.0,0.22167787]
[1765642635585,0.03683354,90223.0,90222.0,0.02661]
[1765642635789,0.03683354,90223.0,90222.0,0.04967]
[1765642636201,0.03683354,90223.0,90222.0,0.02661]
[1765642638040,0.03783354,90223.0,90222.0,0.02661]
[1765642638236,0.03783354,90223.0,90220.0,0.04957967]
[1765642638485,0.03683354,90223.0,90220.0,0.0096708]
[1765642639678,0.04791718,90223.0,90220.0,0.0096708]
[1765642639868,0.01108364,90223.0,90220.0,0.0096708]
[1765642640621,0.23275877,90223.0,90220.0,0.0096708]
[1765642640765,0.22167787,90221.0,90220.0,0.0096708]
[1765642641402,0.23275877,90223.0,90220.0,0.0096708]
[1765642642390,0.01108352,90224.0,90221.0,0.02347389]
[1765642642830,0.01108327,90226.0,90222.0,0.01108377]
[1765642642989,0.0110834,90225.0,90222.0,0.01108377]
[1765642643375,0.01108327,90226.0,90222.0,0.01108377]
[1765642643376,0.01108327,90226.0,90223.0,0.01108364]
[1765642644764,0.27153057,90229.0,90225.0,0.0264234]
[1765642644973,0.27153057,90229.0,90228.0,0.01221]
[1765642644974,0.28261348,90229.0,90228.0,0.01221]
[1765642645365,0.28261348,90229.0,90226.0,0.01108327]
[1765642645956,0.22166313,90227.0,90221.0,0.03705]
[1765642646159,0.22166313,90227.0,90223.0,0.01108364]
[1765642646160,0.01108327,90226.0,90223.0,0.01108364]
[1765642647389,0.04798893,90226.0,90223.0,0.01108364]
[1765642649386,0.04898893,90226.0,90223.0,0.01108364]
[1765642649585,0.04998893,90226.0,90223.0,0.01108364]
[1765642650242,0.0110834,90225.0,90222.0,0.01108377]
[1765642651155,0.2327563,90224.0,90221.0,0.01239]
[1765642651362,0.01108352,90224.0,90221.0,0.01239]
[1765642651717,0.01108352,90224.0,90221.0,0.04568162]
[1765642652398,0.01208352,90224.0,90221.0,0.04568162]
[1765642653347,0.01208352,90224.0,90221.0,0.03329162]
[1765642653563,0.22167296,90223.0,90221.0,0.03329162]
[1765642655995,0.00198,90222.0,90221.0,0.03329162]
[1765642656548,0.22167296,90223.0,90221.0,0.03329162]
[1765642657641,0.22167787,90221.0,90220.0,0.04957967]
[1765642657964,0.22167787,90221.0,90220.0,0.08287129]
[1765642658368,0.2327566,90223.0,90220.0,0.08287129]
[1765642659125,0.22167735,90222.0,90220.0,0.08287129]
[1765642661081,0.00198,90221.0,90220.0,0.04296242]
[1765642661194,0.00198,90221.0,90220.0,0.0096708]
[1765642661940,0.22167735,90222.0,90220.0,0.0096708]
[1765642662139,0.01307748,91482.0,90223.0,0.01108364]
[1765642662140,0.03690566,90226.0,90223.0,0.01108364]
[1765642662343,0.04798893,90226.0,90222.0,0.01108377]
[1765642662726,0.04798893,90226.0,90223.0,0.01108364]
[1765642662923,0.23275193,90225.0,90222.0,0.01108377]
[1765642663255,0.23275589,90224.0,90220.0,0.08532368]
[1765642663459,0.23275589,90224.0,90220.0,0.06066368]
[1765642663681,0.0110834,90225.0,90221.0,0.01108389]
[1765642665480,0.0120834,90225.0,90221.0,0.01108389]
[1765642666087,0.01108352,90224.0,90221.0,0.01108389]
[1765642666289,0.01108352,90224.0,90220.0,0.04957967]
[1765642666290,0.01108364,90223.0,90220.0,0.04957967]
[1765642668366,0.01108364,90223.0,90221.0,0.01108364]
[1765642668575,0.22167779,90222.0,90221.0,0.01108364]
[1765642669395,0.22167779,90222.0,90221.0,0.05099251]
[1765642669599,0.23275895,90223.0,90221.0,0.05099251]
[1765642670249,0.01108364,90223.0,90221.0,0.05099251]
[1765642670976,0.0110834,90225.0,90222.0,0.01108377]
[1765642672859,0.0120834,90225.0,90222.0,0.01108377]
[1765642673260,0.001,90225.0,90222.0,0.01108377]
[1765642673467,0.002,90225.0,90222.0,0.01108377]
[1765642674707,0.0130834,90225.0,90222.0,0.01108377]
[1765642676055,0.0130834,90225.0,90221.0,0.06320251]
[1765642676272,0.01108352,90224.0,90221.0,0.06320251]
[1765642677094,0.01108352,90224.0,90221.0,0.05099251]
[1765642677726,0.01108352,90224.0,90221.0,0.0620764]
[1765642677922,0.001,90225.0,90221.0,0.0620764]
[1765642678146,0.001,90225.0,90222.0,0.01108377]
[1765642679085,0.04798893,90226.0,90222.0,0.01108377]
[1765642679699,0.0110834,90225.0,90221.0,0.03414753]
[1765642680102,0.0120834,90225.0,90221.0,0.03414753]
[1765642680531,0.0130834,90225.0,90221.0,0.03414753]
[1765642680733,0.01108352,90224.0,90221.0,0.03414753]
[1765642680906,0.23275633,90224.0,90221.0,0.02306364]
[1765642681113,0.23275633,90224.0,90221.0,0.01108364]
[1765642681680,0.22526829,90222.0,90221.0,0.01108364]
[1765642681894,0.22526829,90222.0,90220.0,0.0096708]
[1765642682094,0.00396,90221.0,90220.0,0.0096708]
[1765642682270,0.00557287,90221.0,90220.0,0.0096708]
[1765642691579,0.11627287,90221.0,90220.0,0.0096708]
[1765642692822,0.11727287,90221.0,90220.0,0.0096708]
[1765642693258,0.06196786,90221.0,90220.0,0.0096708]
[1765642693609,0.06096786,90221.0,90220.0,0.0096708]
[1765642694323,0.11627287,90221.0,90220.0,0.0096708]
[1765642694891,0.12027287,90221.0,90220.0,0.0096708]
[1765642695118,0.41097287,90221.0,90220.0,0.0096708]
[1765642695321,0.44427063,90221.0,90220.0,0.0096708]
[1765642695906,0.33357063,90221.0,90220.0,0.0096708]
[1765642696119,0.44427063,90221.0,90220.0,0.0096708]
[1765642697141,0.525495,90221.0,90220.0,0.0096708]
[1765642697567,0.44427063,90221.0,90220.0,0.0096708]
[1765642699250,0.52606061,90221.0,90220.0,0.0096708]
[1765642701499,0.41536061,90221.0,90220.0,0.0096708]
[1765642701697,0.52606061,90221.0,90220.0,0.0096708]
[1765642702626,0.41536061,90221.0,90220.0,0.0096708]
[1765642702782,0.41338061,90221.0,90220.0,0.0096708]
[1765642703186,0.41536061,90221.0,90220.0,0.0096708]
[1765642704448,0.41136061,90221.0,90220.0,0.0096708]
[1765642704970,0.41436061,90221.0,90220.0,0.0096708]
[1765642705385,0.41236061,90221.0,90220.0,0.0096708]
[1765642705611,0.41436061,90221.0,90220.0,0.0096708]
[1765642725336,0.52506061,90221.0,90220.0,0.0096708]
[1765642726727,0.41436061,90221.0,90220.0,0.0096708]
[1765642733771,0.52506061,90221.0,90220.0,0.0096708]
[1765642734664,0.41436061,90221.0,90220.0,0.0096708]
[1765642735166,0.52506061,90221.0,90220.0,0.0096708]
[1765642735836,0.41436061,90221.0,90220.0,0.0096708]
[1765642738512,0.52506061,90221.0,90220.0,0.0096708]
[1765642742449,0.41436061,90221.0,90220.0,0.0096708]
[1765642742652,0.77965527,90221.0,90220.0,0.0096708]
[1765642750491,0.76926061,90221.0,90220.0,0.0096708]
[1765642750719,0.77964401,90221.0,90220.0,0.0096708]
[1765642755468,0.79712401,90221.0,90220.0,0.0096708]
[1765642767481,0.77964401,90221.0,90220.0,0.0096708]
[1765642767722,0.79712401,90221.0,90220.0,0.0096708]
[1765642802630,0.77964401,90221.0,90220.0,0.0096708]
[1765642802806,0.741819,90221.0,90220.0,0.0096708]
[1765642803008,0.68444401,90221.0,90220.0,0.0096708]
[1765642803207,0.66337114,90221.0,90220.0,0.0096708]
[1765642803808,0.66733114,90221.0,90220.0,0.0096708]
[1765642804153,0.77803114,90221.0,90220.0,0.0096708]
[1765642805776,0.79551114,90221.0,90220.0,0.0096708]
[1765642806667,0.79712401,90221.0,90220.0,0.0096708]
[1765642811507,0.8471424,90221.0,90220.0,0.0096708]
[1765642822478,0.8451424,90221.0,90220.0,0.0096708]
[1765642822965,0.8471424,90221.0,90220.0,0.0096708]
[1765642823391,0.8461424,90221.0,90220.0,0.0096708]
[1765642823825,0.79083739,90221.0,90220.0,0.0096708]
[1765642824176,0.78883739,90221.0,90220.0,0.0096708]
[1765642824578,0.79183739,90221.0,90220.0,0.0096708]
[1765642824782,0.79483739,90221.0,90220.0,0.0096708]
[1765642829052,0.8501424,90221.0,90220.0,0.0096708]
[1765642831110,0.8326624,90221.0,90220.0,0.0096708]
[1765642831272,0.8501424,90221.0,90220.0,0.0096708]
[1765642831858,0.8326624,90221.0,90220.0,0.0096708]
[1765642832073,0.8501424,90221.0,90220.0,0.0096708]
[1765642840248,0.7394424,90221.0,90220.0,0.0096708]
[1765642840399,0.8501424,90221.0,90220.0,0.0096708]
[1765642871589,0.85015952,90221.0,90220.0,0.0096708]
[1765642874100,0.2907,90200.0,90199.0,0.0117]
[1765642874253,0.34611978,90200.0,90199.0,0.0117]
[1765642875674,0.34611978,90200.0,90199.0,0.0127]
[1765642875887,0.34611978,90200.0,90199.0,0.0137]
[1765642878033,0.34611978,90200.0,90199.0,0.002]
[1765642879740,0.34611978,90200.0,90199.0,0.0024781]
[1765642900874,0.34611978,90200.0,90199.0,0.0522381]
[1765642910037,0.05541978,90200.0,90199.0,0.0522381]
[1765642910654,0.34611978,90200.0,90199.0,0.0522381]
[1765642911740,0.34611978,90200.0,90199.0,0.0289181]
[1765642912180,0.34611978,90200.0,90199.0,0.0522381]
[1765642913662,0.05541978,90200.0,90199.0,0.0522381]
[1765642921096,0.34611978,90200.0,90199.0,0.0522381]
[1765642921299,0.34611978,90200.0,90199.0,0.0289181]
[1765642921864,0.34611978,90200.0,90199.0,0.0518481]
[1765642922041,0.34611978,90200.0,90199.0,0.0289181]
[1765642925315,0.05541978,90200.0,90199.0,0.0289181]
[1765642929802,0.28110927,90200.0,90199.0,0.0024781]
[1765642930160,0.68250927,90200.0,90199.0,0.0024781]
[1765642930385,0.69290437,90200.0,90199.0,0.0024781]
[1765642930580,0.72621074,90200.0,90199.0,0.0024781]
[1765642930793,0.72621074,90200.0,90199.0,0.0014781]
[1765642931170,0.72621074,90200.0,90199.0,0.0004781]
[1765642933111,0.71781564,90200.0,90199.0,0.0004781]
[1765642933877,0.71981564,90200.0,90199.0,0.0004781]
[1765642940238,0.73019017,90200.0,90199.0,0.0004781]
[1765642942368,0.96401564,90200.0,90199.0,0.0004781]
[1765642942571,0.97438697,90200.0,90199.0,0.0004781]
[1765642943715,1.08489459,90200.0,90199.0,0.0004781]
[1765642944147,1.13491298,90200.0,90199.0,0.0004781]
[1765642944277,1.02440536,90200.0,90199.0,0.0004781]
[1765642957238,1.02441232,90200.0,90199.0,0.0004781]
[1765642958182,1.02241232,90200.0,90199.0,0.0004781]
[1765642958506,1.02341232,90200.0,90199.0,0.0004781]
[1765642958841,1.02641232,90200.0,90199.0,0.0004781]
[1765642960387,1.13691994,90200.0,90199.0,0.0004781]
[1765642962421,2.13691994,90200.0,90199.0,0.0004781]
[1765642962624,2.13691994,90200.0,90180.0,0.0002]
[1765642962625,0.67319459,90181.0,90180.0,0.0002]
[1765642962780,0.69265459,90181.0,90180.0,0.0002]
[1765642962998,0.69463459,90181.0,90180.0,0.0002]
[1765642963196,0.70501439,90181.0,90180.0,0.00076793]
[1765642963844,0.7094566,90181.0,90180.0,0.00076793]
[1765642964196,0.6990768,90181.0,90180.0,0.00076793]
[1765642965237,0.78087809,90181.0,90180.0,0.00076793]
[1765642965438,0.79125388,90181.0,90180.0,0.00076793]
[1765642966104,0.78087809,90181.0,90180.0,0.00076793]
[1765642966310,0.78249096,90181.0,90180.0,0.00076793]
[1765642967764,0.79919739,90181.0,90180.0,0.00076793]
[1765642971245,0.620999,90181.0,90180.0,0.00076793]
[1765642971445,0.69387399,90181.0,90180.0,0.00076793]
[1765642971647,0.749179,90181.0,90180.0,0.00076793]
[1765642971870,0.993379,90181.0,90180.0,0.00076793]
[1765642984796,0.84651257,90181.0,90180.0,0.00076793]
[1765642984995,0.86399257,90181.0,90180.0,0.00076793]
[1765642989122,0.76471128,90181.0,90180.0,0.00076793]
[1765642989311,0.76111841,90181.0,90180.0,0.00076793]
[1765642994230,0.53934221,90181.0,90180.0,0.00076793]
[1765642994576,0.76111841,90181.0,90180.0,0.00076793]
[1765642996122,0.53934221,90181.0,90180.0,0.00076793]
[1765642996321,0.53934221,90181.0,90180.0,0.04110793]
[1765642996561,0.5349,90181.0,90180.0,0.04110793]
[1765642999121,0.5349,90181.0,90180.0,0.00076793]
[1765643018748,0.7566762,90181.0,90180.0,0.00076793]
[1765643018947,0.5349,90181.0,90180.0,0.00076793]
[1765643031520,0.65117287,90181.0,90180.0,0.00076793]
[1765643033294,0.54047287,90181.0,90180.0,0.00076793]
[1765643040483,0.53849287,90181.0,90180.0,0.00076793]
[1765643042316,0.65117287,90181.0,90180.0,0.00076793]
[1765643043069,0.53849287,90181.0,90180.0,0.00076793]
[1765643043443,0.53651287,90181.0,90180.0,0.00076793]
[1765643048502,0.5349,90181.0,90180.0,0.00076793]
[1765643048705,0.7566762,90181.0,90180.0,0.00076793]
[1765643049993,0.7606362,90181.0,90180.0,0.00076793]
[1765643050192,0.7586562,90181.0,90180.0,0.00076793]
[1765643051396,0.7606362,90181.0,90180.0,0.00076793]
[1765643051951,0.8713362,90181.0,90180.0,0.00076793]
[1765643052088,0.62874907,90181.0,90180.0,0.00076793]
[1765643052455,0.57344406,90181.0,90180.0,0.00076793]
[1765643052674,0.58383382,90181.0,90180.0,0.00076793]
[1765643053078,0.61714884,90181.0,90180.0,0.00076793]
[1765643053294,0.67245385,90181.0,90180.0,0.00076793]
[1765643058024,0.91665385,90181.0,90180.0,0.00076793]
[1765643066358,0.96667224,90181.0,90180.0,0.00076793]
[1765643067688,0.96767224,90181.0,90180.0,0.00076793]
[1765643068219,0.96667224,90181.0,90180.0,0.00076793]
[1765643068435,0.96967224,90181.0,90180.0,0.00076793]
[1765643068636,0.97267224,90181.0,90180.0,0.00076793]
[1765643069845,0.82943385,90181.0,90180.0,0.00076793]
[1765643070057,0.47358907,90181.0,90180.0,0.00076793]
[1765643070256,0.76428907,90181.0,90180.0,0.00076793]
[1765643070897,0.76128907,90181.0,90180.0,0.00076793]
[1765643071073,0.75828907,90181.0,90180.0,0.00076793]
[1765643071257,0.76028907,90181.0,90180.0,0.00076793]
[1765643071618,0.76228907,90181.0,90180.0,0.00076793]
[1765643084906,0.76426907,90181.0,90180.0,0.00076793]
[1765643091117,0.76228907,90181.0,90180.0,0.00076793]
[1765643101417,0.76426907,90181.0,90180.0,0.00076793]
[1765643101878,0.76624907,90181.0,90180.0,0.00076793]
[1765643102079,0.76426907,90181.0,90180.0,0.00076793]
[1765643103485,0.7606762,90181.0,90180.0,0.00076793]
[1765643103685,0.7606762,90181.0,90180.0,0.04087793]
[1765643103686,0.5389,90181.0,90180.0,0.04087793]
[1765643104570,0.5369,90181.0,90180.0,0.04087793]
[1765643104845,0.5349,90181.0,90180.0,0.04087793]
[1765643107812,0.2907,90181.0,90180.0,0.04087793]
[1765643116094,0.5124762,90181.0,90180.0,0.00076793]
[1765643118871,0.2907,90181.0,90180.0,0.04087793]
[1765643134193,0.2218008,90171.0,90170.0,0.0002]
[1765643134376,0.70779139,90171.0,90170.0,0.0002]
[1765643134572,0.71138426,90171.0,90170.0,0.0002]
[1765643134771,0.71138426,90171.0,90170.0,0.00049897]
[1765643135156,0.71582674,90171.0,90170.0,0.00049897]
[1765643135734,0.71582674,90171.0,90170.0,0.00149897]
[1765643136240,0.71582674,90171.0,90170.0,0.00049897]
[1765643136653,0.71582674,90171.0,90170.0,0.00349897]
[1765643137477,0.73330674,90171.0,90170.0,0.00349897]
[1765643138465,0.72292037,90171.0,90170.0,0.00349897]
[1765643144114,0.96712037,90171.0,90170.0,0.00349897]
[1765643148978,0.83498037,90171.0,90170.0,0.00349897]
[1765643149260,0.96712037,90171.0,90170.0,0.00349897]
[1765643154425,1.01713876,90171.0,90170.0,0.00354173]
[1765643158709,0.89433536,90171.0,90170.0,0.00354173]
[1765643158909,0.91181536,90171.0,90170.0,0.00354173]
[1765643160433,0.92217295,90171.0,90170.0,0.00354173]
[1765643165100,0.91181536,90171.0,90170.0,0.00354173]
[1765643165299,0.92220529,90171.0,90170.0,0.00354173]
[1765643168731,0.90472529,90171.0,90170.0,0.00354173]
[1765643168911,0.92220529,90171.0,90170.0,0.00354173]
[1765643169292,0.8668103,90171.0,90170.0,0.00354173]
[1765643169476,0.8493303,90171.0,90170.0,0.00354173]
[1765643169808,0.8668103,90171.0,90170.0,0.00354173]
[1765643173444,0.9775103,90171.0,90170.0,0.00354173]
[1765643174399,0.9775103,90171.0,90170.0,0.00154173]
[1765643174803,0.9775103,90171.0,90170.0,0.00254173]
[1765643175038,0.9775103,90171.0,90170.0,0.00154173]
[1765643175433,0.9775103,90171.0,90170.0,0.00254173]
[1765643190472,0.94328055,90171.0,90170.0,0.00254173]
[1765643191249,0.83060055,90171.0,90170.0,0.00254173]
[1765643192301,0.83258055,90171.0,90170.0,0.00254173]
[1765643193546,0.88797554,90171.0,90170.0,0.00254173]
[1765643200579,0.83258055,90171.0,90170.0,0.00254173]
[1765643201108,0.88797554,90171.0,90170.0,0.00254173]
[1765643204482,0.83258055,90171.0,90170.0,0.00254173]
[1765643205574,0.94328055,90171.0,90170.0,0.00254173]
[1765643214440,0.82862055,90171.0,90170.0,0.00254173]
[1765643214605,0.83060055,90171.0,90170.0,0.00254173]
[1765643214792,0.94328055,90171.0,90170.0,0.00254173]
[1765643223631,0.83258055,90171.0,90170.0,0.00254173]
[1765643223845,0.94328055,90171.0,90170.0,0.00254173]
[1765643224671,0.90528608,90171.0,90170.0,0.00254173]
[1765643230308,0.90529148,90171.0,90170.0,0.00254173]
[1765643249931,0.79459148,90171.0,90170.0,0.00254173]
[1765643250263,0.90529148,90171.0,90170.0,0.00254173]
[1765643265997,0.90529128,90171.0,90170.0,0.00254173]
[1765643273138,0.90528898,90171.0,90170.0,0.00254173]
[1765643274630,0.79458898,90171.0,90170.0,0.00254173]
[1765643274832,0.84998397,90171.0,90170.0,0.00254173]
[1765643288672,0.90000236,90171.0,90170.0,0.00254173]
[1765643302857,0.95530737,90171.0,90170.0,0.00254173]
[1765643304255,0.95530737,90171.0,90170.0,0.00154173]
[1765643304475,0.95530737,90171.0,90170.0,0.00054173]
[1765643307079,0.47044328,90171.0,90170.0,0.04033173]
[1765643307467,0.47044328,90171.0,90170.0,0.00054173]
[1765643307669,0.76114328,90171.0,90170.0,0.00054173]
[1765643308068,0.76312328,90171.0,90170.0,0.00054173]
[1765643309757,0.76301229,90171.0,90170.0,0.00054173]
[1765643310925,0.76499229,90171.0,90170.0,0.00054173]
[1765643311107,0.82038728,90171.0,90170.0,0.00054173]
[1765643311334,0.76499229,90171.0,90170.0,0.00054173]
[1765643311707,0.87569229,90171.0,90170.0,0.00054173]
[1765643315010,0.87730516,90171.0,90170.0,0.00054173]
[1765643315902,0.76660516,90171.0,90170.0,0.00054173]
[1765643316110,0.87730516,90171.0,90170.0,0.00054173]
[1765643317680,0.90516777,90171.0,90170.0,0.00054173]
[1765643320577,0.90516773,90171.0,90170.0,0.00054173]
[1765643329874,0.84986272,90171.0,90170.0,0.00054173]
[1765643330076,0.90516773,90171.0,90170.0,0.00054173]
[1765643330465,0.92218062,90171.0,90170.0,0.00054173]
[1765643332267,0.81148062,90171.0,90170.0,0.00054173]
[1765643332652,0.86687561,90171.0,90170.0,0.00054173]
[1765643333061,0.81148062,90171.0,90170.0,0.00054173]
[1765643333273,0.92218062,90171.0,90170.0,0.00054173]
[1765643339172,0.81148062,90171.0,90170.0,0.00054173]
[1765643339382,0.92218062,90171.0,90170.0,0.00054173]
[1765643339680,0.81148062,90171.0,90170.0,0.00054173]
[1765643339840,0.92218062,90171.0,90170.0,0.00054173]
[1765643342065,0.81148062,90171.0,90170.0,0.00054173]
[1765643342274,0.80950062,90171.0,90170.0,0.00054173]
[1765643343243,0.81148062,90171.0,90170.0,0.00054173]
[1765643343846,0.86687561,90171.0,90170.0,0.00054173]
[1765643344316,0.81148062,90171.0,90170.0,0.00054173]
[1765643344957,0.80950062,90171.0,90170.0,0.00054173]
[1765643345402,0.81148062,90171.0,90170.0,0.00054173]
[1765643346599,0.86687561,90171.0,90170.0,0.00054173]
[1765643347834,0.81148062,90171.0,90170.0,0.00054173]
[1765643350230,0.92218062,90171.0,90170.0,0.00054173]
[1765643353234,0.92020062,90171.0,90170.0,0.00054173]
[1765643353442,0.92218062,90171.0,90170.0,0.00054173]
[1765643376028,0.80752062,90171.0,90170.0,0.00054173]
[1765643376265,0.81148062,90171.0,90170.0,0.00054173]
[1765643377843,0.86687561,90171.0,90170.0,0.00054173]
[1765643378788,0.86670785,90171.0,90170.0,0.00054173]
[1765643389406,0.86670785,90171.0,90170.0,0.00071873]
[1765643401142,0.92201286,90171.0,90170.0,0.00071873]
[1765643401350,0.92301286,90171.0,90170.0,0.00071873]
[1765643401695,0.92401286,90171.0,90170.0,0.00071873]
[1765643405076,0.86333125,90171.0,90170.0,0.00071873]
[1765643405280,0.97403125,90171.0,90170.0,0.00071873]
[1765643407115,0.79583286,90171.0,90170.0,0.00071873]
[1765643407264,0.81331286,90171.0,90170.0,0.00071873]
[1765643409985,0.86870785,90171.0,90170.0,0.00071873]
[1765643410708,0.81331286,90171.0,90170.0,0.00071873]
[1765643410926,0.86870785,90171.0,90170.0,0.00071873]
[1765643412291,0.81331286,90171.0,90170.0,0.00071873]
[1765643412912,0.86870785,90171.0,90170.0,0.00071873]
[1765643413538,0.81331286,90171.0,90170.0,0.00071873]
[1765643413743,0.86870785,90171.0,90170.0,0.00071873]
[1765643416267,0.86871799,90171.0,90170.0,0.00071873]
[1765643422311,0.91873638,90171.0,90170.0,0.00071873]
[1765643422513,0.97404139,90171.0,90170.0,0.00071873]
[1765643422959,0.91873638,90171.0,90170.0,0.00071873]
[1765643431726,1.91873638,90171.0,90170.0,0.00071873]
[1765643432466,1.91873638,90171.0,90160.0,0.0002]
[1765643432467,0.67324379,90161.0,90160.0,0.0002]
[1765643432795,1.67703129,90161.0,90160.0,0.0002]
[1765643433139,1.71233534,90161.0,90160.0,0.0002]
[1765643433741,2.05573534,90161.0,90160.0,0.0002]
[1765643433946,1.74273534,90161.0,90160.0,0.0002]
[1765643434794,1.78913534,90161.0,90160.0,0.0002]